bitfinex/quotes_ETHUSD_20250806
["timestamp","ask_amount","ask_price","bid_price","bid_amount"]
[1754488778814,0.4746,3608.2,3607.9,2.77165405]
[1754488779016,0.1384,3608.3,3608.2,2.77146499]
[1754488779222,0.6443,3608.3,3608.2,2.77146499]
[1754488779626,0.6443,3608.3,3608.1,2.77150925]
[1754488779931,0.6443,3608.3,3607.9,2.77168145]
[1754488779932,0.6443,3608.3,3608.2,2.77146499]
[1754488780149,1.1189,3608.3,3608.2,2.77146499]
[1754488780309,0.6443,3608.3,3608.2,2.77146499]
[1754488781007,0.1384,3608.3,3608.2,2.77146499]
[1754488781425,0.613,3608.3,3607.9,2.77169056]
[1754488781832,1.0451,3608.3,3608.1,2.77153955]
[1754488782125,0.4746,3608.2,3607.8,0.1384]
[1754488782324,0.9067,3608.2,3607.8,0.1384]
[1754488782524,1.45581,3608.1,3607.8,0.1384]
[1754488782726,1.16536064,3608.0,3607.5,0.002]
[1754488782976,0.1384,3607.6,3607.5,0.002]
[1754488783177,4.5834,3607.6,3607.5,0.002]
[1754488783382,6.03911,3607.6,3607.5,0.002]
[1754488784383,5.13241,3607.6,3607.5,0.002]
[1754488784676,4.5834,3607.6,3607.5,0.002]
[1754488784983,0.1384,3607.6,3607.5,2.77400277]
[1754488785147,4.5834,3607.6,3607.5,2.77400277]
[1754488785342,0.1384,3607.6,3607.5,2.77400277]
[1754488785661,4.445,3607.9,3607.5,3.26317467]
[1754488785827,4.445,3608.1,3608.0,2.77159555]
[1754488786031,0.1384,3608.2,3608.1,2.7715418]
[1754488786226,4.445,3608.2,3608.1,3.2607418]
[1754488786425,4.445,3608.2,3608.1,3.7286418]
[1754488786843,4.445,3608.2,3608.1,2.7715418]
[1754488787252,4.445,3608.2,3608.1,3.2607418]
[1754488787439,0.1384,3608.5,3608.2,2.77146499]
[1754488787764,0.25980113,3608.7,3608.3,2.77138818]
[1754488787930,4.444,3608.5,3608.3,2.77138818]
[1754488788138,0.25882831,3608.4,3608.3,3.72848818]
[1754488788464,1e-08,3608.4,3608.3,4.3923235]
[1754488788864,1e-08,3608.4,3608.3,4.5307235]
[1754488789166,1e-08,3608.4,3608.3,5.0807235]
[1754488789867,1e-08,3608.4,3608.3,4.5307235]
[1754488790067,1e-08,3608.4,3608.3,3.39898818]
[1754488790237,1e-08,3608.4,3608.3,3.86688818]
[1754488791039,1e-08,3608.4,3608.3,2.90978818]
[1754488791254,1e-08,3608.4,3608.3,3.39658818]
[1754488791744,1e-08,3608.4,3608.3,2.77138818]
[1754488793362,1e-08,3608.4,3608.3,3.70628818]
[1754488793563,1e-08,3608.4,3608.3,2.77138818]
[1754488794383,1e-08,3608.4,3608.1,2.77153328]
[1754488794553,4.90530001,3608.4,3607.9,0.1384]
[1754488794753,5.48134284,3608.4,3607.5,2.7739562]
[1754488794954,0.1384,3608.2,3607.7,0.1384]
[1754488795350,0.1384,3608.2,3607.9,2.77167896]
[1754488795549,5.48134284,3608.4,3608.0,2.77161862]
[1754488795777,0.4633,3608.3,3608.1,2.77149958]
[1754488795944,0.59382428,3608.3,3608.2,2.77146499]
[1754488796454,0.73222428,3608.3,3608.0,2.77161862]
[1754488796654,0.1384,3608.1,3608.0,2.77161862]
[1754488796883,0.1384,3608.1,3607.8,2.77176934]
[1754488796884,0.1384,3608.1,3607.5,0.6272]
[1754488797091,0.98072243,3608.1,3607.5,0.002]
[1754488797272,0.1384,3607.7,3607.5,0.002]
[1754488797599,4.441,3607.6,3607.5,0.002]
[1754488798761,4.9043,3607.6,3607.5,0.002]
[1754488798966,4.441,3607.6,3607.5,0.002]
[1754488799164,4.99096,3607.6,3607.5,0.002]
[1754488799409,4.441,3607.6,3607.5,0.002]
[1754488799686,4.441,3607.6,3607.5,2.77400277]
[1754488799855,4.441,3607.6,3607.5,0.002]
[1754488800750,4.441,3607.6,3607.5,2.77400277]
[1754488800949,0.1384,3607.8,3607.5,0.4888]
[1754488801152,4.441,3608.1,3608.0,2.77161862]
[1754488801377,4.70031682,3608.1,3607.8,0.4868]
[1754488801574,0.1384,3607.9,3607.8,2.77171174]
[1754488801890,0.1384,3607.9,3607.7,2.77181431]
[1754488802063,0.1384,3607.9,3607.8,2.77177227]
[1754488802265,0.39771682,3607.9,3607.6,2.77192593]
[1754488802480,0.1384,3607.9,3607.6,2.77192593]
[1754488802678,0.39771682,3607.9,3607.6,2.77187664]
[1754488802988,0.1384,3607.9,3607.7,2.77184348]
[1754488803165,0.1384,3607.9,3607.8,2.77177227]
[1754488803366,4.83788266,3607.9,3607.7,2.77182367]
[1754488803567,0.25948266,3607.8,3607.7,2.77182367]
[1754488803792,0.25948266,3608.3,3608.1,2.77149791]
[1754488803995,4.83788266,3608.2,3608.1,3.2196418]
[1754488804176,4.69948266,3608.2,3608.1,3.2196418]
[1754488804577,4.69948266,3608.2,3608.1,3.7064418]
[1754488804770,4.69948266,3608.2,3608.1,3.2583418]
[1754488804983,0.25948266,3608.2,3608.1,3.7064418]
[1754488805296,1e-08,3608.4,3608.1,3.7064418]
[1754488805297,4.44,3608.3,3608.2,2.77146499]
[1754488805594,1e-08,3608.4,3608.3,2.77138818]
[1754488806065,0.2595326,3608.4,3608.3,2.77138818]
[1754488806261,0.2595326,3608.4,3608.1,0.1384]
[1754488806472,1e-08,3608.4,3608.1,0.1384]
[1754488806674,0.25958041,3608.3,3608.2,2.77146499]
[1754488807202,1.33113845,3608.3,3607.9,2.77165207]
[1754488807388,0.25958041,3608.2,3608.0,2.77161714]
[1754488807724,4.83698041,3608.1,3608.0,2.77161714]
[1754488808001,4.5774,3608.1,3608.0,2.77161714]
[1754488808388,0.1384,3608.1,3608.0,2.77161714]
[1754488808700,4.439,3608.2,3608.1,2.7715418]
[1754488808901,0.25962107,3608.2,3608.1,3.7064418]
[1754488809063,4.438,3608.2,3608.1,3.7064418]
[1754488809268,1e-08,3608.4,3608.3,3.32138818]
[1754488809461,1e-08,3608.4,3608.3,3.45978818]
[1754488809826,1e-08,3608.4,3608.3,4.39468818]
[1754488810112,1e-08,3608.4,3608.3,5.20518579]
[1754488810319,1e-08,3608.4,3608.3,4.51678579]
[1754488810460,1e-08,3608.4,3608.3,3.70628818]
[1754488811102,1e-08,3608.4,3608.3,4.25628818]
[1754488811685,1e-08,3608.4,3608.3,3.70628818]
[1754488811892,1e-08,3608.4,3608.3,2.77138818]
[1754488812787,1e-08,3608.4,3608.0,0.9349]
[1754488812992,1e-08,3608.4,3608.2,2.77139292]
[1754488813204,1e-08,3608.4,3608.3,2.77138818]
[1754488814993,1e-08,3608.4,3608.3,3.70628818]
[1754488815295,1e-08,3608.4,3608.3,2.77138818]
[1754488816293,1e-08,3608.4,3608.3,3.25818818]
[1754488816497,1e-08,3608.4,3608.3,4.85925442]
[1754488819489,1e-08,3608.4,3608.3,12.29425442]
[1754488819822,1e-08,3608.4,3608.3,7.85925442]
[1754488820288,1e-08,3608.4,3608.3,7.99765442]
[1754488820488,1e-08,3608.4,3608.3,12.43265442]
[1754488821329,0.001,3608.8,3608.7,2.77108099]
[1754488821517,0.001,3608.8,3608.7,4.17531318]
[1754488821710,0.001,3608.8,3608.7,4.31371318]
[1754488821887,0.001,3608.8,3608.7,5.21541318]
[1754488822528,1e-08,3608.9,3608.8,6.32100421]
[1754488822733,1e-08,3608.9,3608.8,9.09686236]
[1754488822904,1e-08,3608.9,3608.8,2.77100421]
[1754488824110,0.48130001,3608.9,3608.8,2.77100421]
[1754488824315,1.07690001,3608.9,3607.8,0.4645]
[1754488824512,0.4813,3608.8,3608.3,2.77137496]
[1754488824712,0.55099,3608.7,3607.5,0.002]
[1754488824920,0.81005634,3608.7,3607.5,0.002]
[1754488825136,0.1384,3608.1,3608.0,2.77158273]
[1754488825434,0.1384,3608.1,3607.5,0.002]
[1754488825435,4.433,3608.5,3607.7,0.4372]
[1754488825607,0.48130001,3608.9,3608.8,2.77100421]
[1754488825608,1e-08,3608.9,3608.8,2.77100421]
[1754488825930,1e-08,3608.9,3608.8,2.90940421]
[1754488826288,1e-08,3608.9,3608.8,3.83881425]
[1754488826487,1e-08,3608.9,3608.8,3.81110421]
[1754488826721,1e-08,3608.9,3608.8,4.46933037]
[1754488827708,1e-08,3608.9,3608.8,5.01933037]
[1754488828426,0.00100001,3608.9,3608.8,5.01933037]
[1754488828643,0.00100001,3608.9,3608.8,2.90940421]
[1754488828792,0.00100001,3608.9,3608.8,2.77100421]
[1754488828992,0.00100001,3608.9,3608.8,3.23550421]
[1754488829195,0.00100001,3608.9,3608.8,3.67270421]
[1754488829402,0.00100001,3608.9,3608.8,2.77100421]
[1754488829815,0.00100001,3608.9,3608.8,4.22270421]
[1754488830020,0.00100001,3608.9,3608.8,5.199207]
[1754488831200,0.00100001,3608.9,3608.8,8.199207]
[1754488831625,0.00100001,3608.9,3608.8,12.630207]
[1754488832010,1e-08,3608.9,3608.8,12.630207]
[1754488832737,0.001,3609.3,3609.2,3.3206971]
[1754488833046,0.001,3609.3,3609.2,7.7506971]
[1754488833457,0.001,3609.3,3609.2,8.6523971]
[1754488834556,0.001,3609.3,3609.2,3.2351971]
[1754488834760,0.001,3609.3,3609.2,8.6523971]
[1754488834942,0.001,3609.3,3609.2,9.87407531]
[1754488835719,0.001,3609.3,3609.2,9.43687531]
[1754488835934,0.001,3609.3,3609.2,2.7706971]
[1754488836457,0.001,3609.3,3608.9,4.31098752]
[1754488836458,0.001,3609.3,3608.9,1.54012961]
[1754488836647,0.001,3609.3,3609.1,2.77072347]
[1754488836847,0.001,3609.3,3608.5,4.429]
[1754488836848,0.4582,3609.3,3609.2,2.7706971]
[1754488837236,0.9395,3609.3,3609.2,2.7706971]
[1754488837622,0.4823,3609.3,3609.2,2.7706971]
[1754488837818,0.001,3609.3,3609.2,2.7706971]
[1754488838130,0.9395,3609.3,3608.8,2.77093984]
[1754488838344,0.4582,3609.3,3608.3,4.8955]
[1754488838543,0.5803,3609.2,3608.5,2.77122793]
[1754488838746,0.1384,3608.8,3608.3,0.1404]
[1754488838956,0.4813,3608.7,3608.3,0.002]
[1754488839118,0.1384,3608.6,3608.4,2.77126654]
[1754488839321,0.1384,3608.6,3608.5,2.77123458]
[1754488839556,0.25900752,3609.0,3608.5,2.77123458]
[1754488839759,0.1384,3609.0,3608.5,3.37413458]
[1754488839960,0.5803,3608.9,3608.5,0.1384]
[1754488840258,0.1384,3608.9,3608.6,2.7711077]
[1754488840460,0.4823,3609.3,3609.0,2.77079356]
[1754488840461,0.25900752,3609.2,3609.0,2.77079356]
[1754488840768,0.001,3609.3,3609.2,3.3206971]
[1754488840918,0.001,3609.3,3609.2,3.4590971]
[1754488841121,0.01955234,3609.8,3609.7,3.32031332]
[1754488841319,0.01955234,3609.8,3609.7,7.88671332]
[1754488841576,1e-08,3609.9,3609.8,0.55]
[1754488841860,1e-08,3609.9,3609.8,4.22193657]
[1754488842219,1e-08,3609.9,3609.8,4.36033657]
[1754488842558,0.04,3610.9,3610.8,2.76946936]
[1754488842721,0.04,3610.9,3610.8,8.0244163]
[1754488842921,0.04,3610.9,3610.8,8.9261163]
[1754488843347,1.48489687,3611.5,3611.4,3.31900924]
[1754488843557,1.48489687,3611.5,3611.4,7.88440924]
[1754488844160,1.48489687,3611.5,3611.4,2.90740924]
[1754488844456,1.48489687,3611.5,3611.4,3.37190924]
[1754488844619,1.48489687,3611.5,3611.4,2.90740924]
[1754488845693,1.48489687,3611.5,3611.4,8.41308386]
[1754488845865,0.2495,3613.0,3611.8,3.31870258]
[1754488846195,0.2495,3613.0,3611.8,7.7723896]
[1754488846380,1e-08,3611.9,3611.8,11.78480258]
[1754488846565,0.2495,3613.0,3612.8,2.76793622]
[1754488846768,0.2495,3613.0,3612.8,7.19393622]
[1754488847070,0.2495,3613.0,3612.8,7.33233622]
[1754488847479,0.2495,3613.0,3612.8,2.90633622]
[1754488848307,0.2495,3613.0,3612.8,0.1384]
[1754488848457,0.7183,3612.9,3611.7,0.4645]
[1754488848655,0.5213,3612.9,3612.5,2.76810378]
[1754488848857,0.5213,3612.9,3612.2,2.7683899]
[1754488849056,0.5213,3612.9,3612.2,4.424]
[1754488849272,0.1384,3612.8,3612.4,2.76824271]
[1754488849596,0.1384,3612.8,3612.5,2.76811567]
[1754488849796,0.04,3612.9,3612.8,2.76793622]
[1754488850016,0.04,3612.9,3612.8,2.90633622]
[1754488850303,0.04,3612.9,3612.8,8.23203622]
[1754488850456,0.04,3612.9,3612.8,7.33033622]
[1754488850658,0.04,3612.9,3612.8,7.79483622]
[1754488850968,0.04,3612.9,3612.8,8.23203622]
[1754488851174,0.04,3612.9,3612.8,9.8820427]
[1754488851565,0.04,3612.9,3612.8,9.8810427]
[1754488851762,0.04,3612.9,3612.8,7.32933622]
[1754488851982,0.04,3612.9,3612.8,2.90633622]
[1754488852693,0.7146,3612.9,3612.4,2.76818666]
[1754488852862,0.6746,3612.8,3611.7,0.4532]
[1754488853063,0.1384,3612.7,3612.2,0.1384]
[1754488853384,0.6746,3612.6,3612.1,2.76844811]
[1754488853566,0.616,3612.5,3612.0,0.1384]
[1754488853992,0.1384,3612.5,3612.0,0.1384]
[1754488854293,0.4776,3612.4,3612.0,0.1384]
[1754488854498,0.1384,3612.5,3612.0,2.90691407]
[1754488854808,0.1384,3612.5,3612.4,2.76824271]
[1754488855160,0.04,3612.9,3612.4,0.1384]
[1754488855798,0.1384,3612.6,3612.4,2.76824264]
[1754488856005,0.1384,3612.6,3612.3,2.76829159]
[1754488856317,0.04,3612.9,3612.5,2.76813889]
[1754488856318,0.1784,3612.9,3612.5,2.76813889]
[1754488856461,0.1784,3612.9,3612.3,2.76829513]
[1754488856656,0.4776,3612.8,3612.1,0.1384]
[1754488856860,0.4776,3612.8,3611.0,3.0]
[1754488856861,0.1384,3612.2,3611.4,2.90740911]
[1754488857096,0.6746,3612.1,3610.4,6.655]
[1754488857303,0.4776,3612.1,3611.0,0.1384]
[1754488857471,0.1384,3611.9,3611.5,2.76893257]
[1754488857876,0.4776,3611.8,3611.4,2.76896151]
[1754488858087,0.1384,3611.7,3611.5,2.76892536]
[1754488858271,0.1384,3611.7,3611.6,2.7688559]
[1754488858459,0.1384,3612.2,3611.6,0.86848559]
[1754488858659,3.4776,3612.6,3612.2,2.76832986]
[1754488858859,0.1384,3612.3,3612.2,2.76834058]
[1754488859060,0.2,3612.7,3611.8,0.1384]
[1754488859303,2.76822141,3612.5,3611.4,2.76896016]
[1754488859503,2.76822141,3612.5,3610.9,7.74035454]
[1754488859504,0.1384,3612.0,3611.5,0.1384]
[1754488860015,0.1384,3611.8,3611.3,0.1384]
[1754488860399,0.1384,3611.8,3611.4,2.76899164]
[1754488860747,0.1384,3611.8,3611.7,2.76877924]
[1754488861119,0.2,3612.7,3611.9,2.76858596]
[1754488861314,0.1384,3612.3,3612.0,2.76854226]
[1754488861537,0.1384,3612.3,3612.2,2.76839599]
[1754488862212,0.1384,3612.3,3611.8,0.4532]
[1754488862423,0.1384,3612.3,3612.2,2.76839599]
[1754488862748,4.461,3612.9,3612.5,2.76810994]
[1754488862749,0.1384,3612.6,3612.5,2.76810994]
[1754488863048,0.04,3612.9,3611.9,0.4532]
[1754488863049,0.1384,3612.8,3612.4,2.7682152]
[1754488863354,0.1384,3612.8,3611.9,0.4532]
[1754488863511,0.616,3612.8,3612.3,2.76825596]
[1754488863707,1.542201,3612.8,3612.1,0.1384]
[1754488864157,1.542201,3612.8,3612.5,2.7681569]
[1754488864344,1.542201,3612.8,3612.1,0.1384]
[1754488864554,0.1384,3612.8,3612.1,0.1384]
[1754488864712,0.1384,3612.8,3612.2,2.76839599]
[1754488865066,0.1384,3612.3,3612.2,2.76839599]
[1754488865547,0.57851,3612.9,3612.7,2.76800412]
[1754488865844,0.04,3612.9,3612.8,2.76793622]
[1754488866441,0.04,3612.9,3612.5,0.568]
[1754488866646,0.04,3612.9,3612.7,2.76796366]
[1754488866823,0.04,3612.9,3612.8,2.76793622]
[1754488867213,0.5176,3612.9,3611.2,0.4532]
[1754488867525,0.35358189,3612.8,3612.0,2.76850357]
[1754488867733,0.1384,3612.2,3612.1,2.76847263]
[1754488867948,0.1384,3612.2,3612.0,2.76852214]
[1754488868153,0.1384,3612.2,3612.1,2.76847263]
[1754488868738,0.39583648,3612.5,3612.0,0.1384]
[1754488868948,0.78148365,3612.4,3611.9,0.1384]
[1754488869161,0.1384,3612.5,3612.3,2.76825739]
[1754488869352,0.1384,3612.5,3611.3,0.80720117]
[1754488869353,7.459,3612.9,3612.8,2.76793622]
[1754488869675,0.29778964,3612.9,3612.8,3.22113622]
[1754488869852,0.04,3612.9,3612.8,2.76793622]
[1754488870565,0.29778964,3612.9,3612.8,2.76793622]
[1754488870765,0.29778964,3612.9,3612.3,0.4532]
[1754488871068,0.39618964,3612.8,3612.2,0.1384]
[1754488871245,0.39618964,3612.8,3612.5,2.76814762]
[1754488871442,0.25778964,3612.7,3612.5,2.76814762]
[1754488871642,0.25778964,3612.6,3611.9,0.4532]
[1754488871846,0.1384,3612.4,3612.2,2.76834192]
[1754488872070,0.1384,3612.4,3612.3,2.76831935]
[1754488872374,0.39705767,3612.4,3612.2,2.76835496]
[1754488872672,0.25865767,3612.3,3612.2,2.76835496]
[1754488873131,0.25865767,3612.3,3612.2,3.65115496]
[1754488873330,0.25865767,3612.3,3612.2,4.35708538]
[1754488873538,0.04,3612.9,3612.8,2.76793622]
[1754488873837,0.29890928,3612.9,3612.8,2.76793622]
[1754488874649,0.29890928,3612.9,3612.8,3.65073622]
[1754488875514,0.29890928,3612.9,3612.8,3.78913622]
[1754488875839,0.29890928,3612.9,3612.8,2.76793622]
[1754488876684,0.29890928,3612.9,3612.8,3.78913622]
[1754488877019,0.04,3612.9,3612.8,8.20713622]
[1754488877818,0.04,3612.9,3612.8,8.75713622]
[1754488877981,1e-08,3613.0,3612.9,3.31785961]
[1754488878179,1e-08,3613.0,3612.9,4.20065961]
[1754488878578,1e-08,3613.0,3612.9,3.65065961]
[1754488878798,1e-08,3613.0,3612.9,2.76785961]
[1754488879004,1e-08,3613.0,3612.9,8.06765961]
[1754488879523,1e-08,3613.0,3612.9,7.63805961]
[1754488879707,0.25864425,3613.0,3612.9,2.76785961]
[1754488879883,0.2586427,3613.0,3612.9,2.76785961]
[1754488880084,1e-08,3613.0,3612.9,2.76785961]
[1754488880430,0.25865041,3613.0,3612.9,9.60028903]
[1754488880581,0.25865041,3613.0,3612.9,5.18328903]
[1754488880781,1e-08,3613.0,3612.9,9.04928903]
[1754488881201,1e-08,3613.0,3612.9,7.77545961]
[1754488881391,1e-08,3613.0,3612.9,8.63275961]
[1754488881595,1e-08,3613.0,3612.9,8.77115961]
[1754488882230,1e-08,3613.0,3612.9,11.77115961]
[1754488882446,0.2495,3614.0,3613.6,2.76732344]
[1754488882598,0.2495,3614.0,3613.8,2.76717029]
[1754488882799,0.2495,3614.0,3613.8,2.90557029]
[1754488883031,0.2495,3614.0,3613.8,3.85037029]
[1754488883600,0.2495,3614.0,3613.8,5.50373966]
[1754488884052,0.04,3614.9,3614.3,2.76678748]
[1754488884417,0.25828149,3614.8,3614.3,7.68088748]
[1754488884746,0.04,3614.9,3614.3,8.12658748]
[1754488885129,0.04,3614.9,3614.8,2.76640478]
[1754488885297,0.04,3614.9,3614.8,7.18140478]
[1754488885501,0.04,3614.9,3614.8,8.12620478]
[1754488886055,0.04,3614.9,3614.8,8.67620478]
[1754488886755,0.04,3614.9,3614.8,3.71120478]
[1754488887111,0.04,3614.9,3614.8,7.18040478]
[1754488887438,0.04,3614.9,3614.8,8.67520478]
[1754488887840,1e-08,3614.9,3614.8,8.67520478]
[1754488888050,1e-08,3615.0,3614.9,3.31632825]
[1754488888347,1e-08,3615.0,3614.9,4.26112825]
[1754488889126,1e-08,3615.0,3614.9,7.26112825]
[1754488889346,1e-08,3615.0,3614.9,11.67412825]
[1754488889545,1e-08,3615.0,3614.9,8.06832942]
[1754488889813,1e-08,3615.0,3614.9,3.31632825]
[1754488890017,1e-08,3615.0,3614.9,8.67412825]
[1754488890351,1e-08,3615.0,3614.9,7.72932825]
[1754488890584,1e-08,3615.0,3614.9,8.67412825]
[1754488891152,1e-08,3615.0,3614.9,11.67412825]
[1754488891352,1e-08,3615.0,3614.9,13.11818155]
[1754488891548,1e-08,3615.0,3614.9,8.70518155]
[1754488891787,1e-08,3615.0,3614.9,13.11818155]
[1754488892094,1e-08,3615.0,3614.9,8.70518155]
[1754488892295,1e-08,3615.0,3614.9,13.11818155]
[1754488892708,1e-08,3615.0,3614.9,8.70518155]
[1754488892987,1e-08,3615.0,3614.9,13.11818155]
[1754488893746,3.0,3617.2,3615.3,3.0]
[1754488893943,0.4594,3617.4,3616.8,2.76487502]
[1754488894198,0.04,3617.9,3616.8,2.90327502]
[1754488894419,0.4594,3617.3,3616.8,7.31527502]
[1754488894592,0.5978,3617.3,3616.8,7.31527502]
[1754488894917,0.9436,3616.9,3616.8,4.412]
[1754488895219,0.04,3616.9,3616.8,7.17687502]
[1754488895792,0.04,3616.9,3616.6,2.9033625]
[1754488895793,0.4994,3616.9,3616.6,0.1384]
[1754488896113,0.4994,3616.9,3616.6,2.76500163]
[1754488896114,0.4594,3616.8,3616.6,2.76500163]
[1754488896321,0.4594,3616.8,3616.6,7.17600163]
[1754488896520,0.1784,3616.9,3616.7,7.17595147]
[1754488897249,0.04,3616.9,3616.8,2.76487502]
[1754488897447,0.04,3616.9,3616.8,7.17587502]
[1754488897733,0.04,3616.9,3616.8,9.23750506]
[1754488897904,0.04,3616.9,3616.8,9.37590506]
[1754488898299,0.04,3616.9,3616.8,9.37490506]
[1754488898501,1e-08,3616.9,3616.8,7.82650506]
[1754488898714,1e-08,3616.9,3616.8,9.37490506]
[1754488901040,1e-08,3616.9,3616.8,7.31327502]
[1754488901527,1e-08,3616.9,3616.8,7.31227502]
[1754488902244,1e-08,3616.9,3616.8,2.90327502]
[1754488902449,1e-08,3616.9,3616.8,7.31227502]
[1754488902742,1e-08,3616.9,3616.8,2.90327502]
[1754488902944,0.90360001,3616.9,3615.3,0.830937]
[1754488903090,0.1384,3616.6,3616.1,0.1384]
[1754488903291,0.90360001,3616.9,3616.2,4.409]
[1754488903292,1e-08,3616.9,3616.2,4.409]
[1754488903604,1e-08,3616.9,3616.8,2.76487502]
[1754488904027,1e-08,3616.9,3616.8,7.17287502]
[1754488904229,1e-08,3616.9,3616.8,4.408]
[1754488904442,1e-08,3616.9,3616.8,7.17287502]
[1754488904590,1e-08,3616.9,3616.8,7.31127502]
[1754488904794,1e-08,3616.9,3616.8,8.81799555]
[1754488904996,1e-08,3616.9,3616.8,9.26369555]
[1754488905396,1e-08,3616.9,3616.8,3.91089555]
[1754488905721,1e-08,3616.9,3616.8,7.31127502]
[1754488906122,1e-08,3616.9,3616.8,8.25607502]
[1754488906419,1e-08,3616.9,3616.8,7.81037502]
[1754488906822,1e-08,3616.9,3616.8,8.25607502]
[1754488907935,1e-08,3616.9,3616.8,8.80607502]
[1754488908153,1e-08,3616.9,3616.8,9.96317555]
[1754488908299,1e-08,3616.9,3616.8,5.00517555]
[1754488908633,1e-08,3616.9,3616.8,8.46737555]
[1754488908833,1e-08,3616.9,3616.8,7.31027502]
[1754488909499,1e-08,3616.9,3616.8,2.90327502]
[1754488910031,0.82040001,3616.9,3616.5,7.17208008]
[1754488910230,0.4594,3616.8,3616.7,2.76495147]
[1754488910607,1e-08,3616.9,3616.5,4.407]
[1754488910808,1e-08,3616.9,3616.6,2.76502792]
[1754488911133,0.6944,3616.8,3616.4,0.1384]
[1754488911302,0.1384,3616.5,3616.4,2.76518084]
[1754488912020,1e-08,3616.9,3616.3,4.407]
[1754488912221,0.13840001,3616.9,3616.8,2.76487502]
[1754488912634,0.39498948,3616.9,3616.8,2.76487502]
[1754488912814,0.13840001,3616.9,3616.8,2.76487502]
[1754488913134,1e-08,3616.9,3616.8,2.76487502]
[1754488913436,0.25740741,3616.9,3616.5,4.407]
[1754488913611,0.2574074,3616.8,3616.7,2.76495147]
[1754488915120,0.2574074,3616.8,3616.3,3.48244447]
[1754488915121,0.7292074,3616.8,3616.3,0.71722683]
[1754488915323,0.7292074,3616.7,3615.7,0.4833]
[1754488915531,0.3958074,3616.6,3616.1,0.1384]
[1754488915722,0.2574074,3616.5,3616.4,2.76518084]
[1754488915921,0.7292074,3616.5,3616.3,2.7652505]
[1754488916126,0.2574074,3616.4,3616.3,2.7652505]
[1754488916322,0.2574074,3616.4,3616.0,0.1384]
[1754488916523,0.6102,3616.6,3616.5,2.76510438]
[1754488916729,0.39650781,3616.6,3616.5,2.76510438]
[1754488917340,0.25810781,3616.6,3616.5,2.76510438]
[1754488918135,0.72990781,3616.6,3616.3,4.406]
[1754488918335,0.72990781,3616.5,3616.2,2.76532905]
[1754488918540,0.25810781,3616.4,3616.3,2.7652573]
[1754488919757,0.25810781,3616.4,3616.2,2.7653297]
[1754488919939,0.25810781,3616.3,3616.2,2.7653297]
[1754488920261,0.25810781,3616.3,3616.1,0.002]
[1754488920629,0.25810781,3616.2,3616.1,2.76738941]
[1754488920775,1.18710781,3616.2,3616.1,0.002]
[1754488921144,1.32550781,3616.2,3616.1,0.002]
[1754488921339,4.09084158,3616.2,3616.1,0.002]
[1754488921646,37.49992574,3616.2,3616.1,0.002]
[1754488921847,2.76644066,3614.8,3614.1,0.042]
[1754488922055,0.1384,3614.2,3614.1,0.042]
[1754488922265,0.1384,3614.2,3614.1,2.80894059]
[1754488922433,0.1384,3614.2,3614.1,3.36673618]
[1754488922632,0.1384,3614.2,3614.1,2.80894059]
[1754488922894,0.4718,3615.0,3614.1,0.042]
[1754488922895,0.1384,3614.4,3614.1,0.042]
[1754488923196,0.4718,3615.4,3614.7,2.76643346]
[1754488923338,0.1384,3614.8,3614.2,0.1384]
[1754488923538,0.1384,3614.8,3614.7,2.76648131]
[1754488923969,0.1384,3614.8,3614.2,2.76685995]
[1754488924185,0.25816841,3614.7,3614.5,2.76661922]
[1754488924405,0.1384,3614.4,3614.1,0.042]
[1754488924609,0.1384,3614.4,3614.2,2.76686403]
[1754488924956,0.1384,3614.4,3614.3,2.76678748]
[1754488925451,0.25796647,3615.0,3614.7,2.76647871]
[1754488925888,0.1384,3614.8,3614.7,2.76647871]
[1754488926586,0.1384,3614.8,3614.5,2.76656614]
[1754488926773,0.1384,3614.8,3614.1,0.6637]
[1754488926971,0.79146647,3615.2,3614.1,0.6637]
[1754488927292,0.1384,3615.0,3614.9,2.76631505]
[1754488927876,0.1384,3615.0,3614.5,0.1384]
[1754488928231,0.4718,3615.3,3614.4,2.76670447]
[1754488928511,0.1384,3614.8,3614.7,2.76647337]
[1754488928710,0.791466,3616.3,3615.1,2.76612872]
[1754488928711,7.66437149,3615.8,3615.1,2.76612872]
[1754488928913,0.1384,3615.2,3615.0,2.76624878]
[1754488929097,2.04570864,3615.7,3614.8,2.76640478]
[1754488929305,0.1384,3615.0,3614.7,2.76644911]
[1754488929502,0.1384,3615.0,3614.9,2.76632825]
[1754488930103,0.4718,3615.7,3614.9,2.76632825]
[1754488930104,0.4718,3615.7,3615.3,2.76598179]
[1754488930417,0.4718,3615.6,3614.8,2.76634473]
[1754488930619,0.1384,3615.1,3615.0,2.76625172]
[1754488931021,0.69795987,3615.9,3615.3,2.76595771]
[1754488931218,0.1384,3615.4,3615.3,2.76595771]
[1754488931518,4.407,3616.5,3615.3,0.952]
[1754488931722,0.25727088,3616.4,3615.4,0.1384]
[1754488932018,0.1384,3615.7,3615.6,2.76574969]
[1754488932218,0.1384,3615.7,3615.2,0.1384]
[1754488932520,0.1384,3615.7,3615.5,2.76585467]
[1754488932706,0.1384,3615.7,3615.6,2.76579267]
[1754488932893,0.4718,3616.1,3614.9,0.4687]
[1754488933216,0.1384,3615.5,3615.2,2.76605451]
[1754488933425,0.4572,3616.0,3615.2,2.76605451]
[1754488933618,0.4718,3615.9,3615.2,2.76608323]
[1754488933826,0.1384,3615.3,3615.2,2.76608323]
[1754488933994,5.45547,3616.2,3614.9,0.4833]
[1754488934199,0.1384,3615.3,3614.9,0.4833]
[1754488934525,0.72908364,3616.1,3615.4,2.7658892]
[1754488934819,0.72908364,3616.1,3614.9,0.82629182]
[1754488934820,0.929,3616.0,3614.9,0.1384]
[1754488935020,0.1384,3615.0,3614.5,0.4833]
[1754488935221,0.1384,3615.0,3614.4,0.6071]
[1754488935526,0.1384,3614.8,3614.7,2.76648131]
[1754488935913,0.1384,3614.8,3614.7,3.71848131]
[1754488936086,0.1384,3614.8,3614.7,3.23518131]
[1754488936423,0.1384,3614.8,3614.7,2.76648131]